bitfinex-derivatives/quotes_SOLF0:USTF0_20251221
["timestamp","ask_amount","ask_price","bid_price","bid_amount"]
[1766355331573,0.0574811,125.23,125.21,0.05602043]
[1766355333481,5.13622185,125.27,125.21,0.05602043]
[1766355334479,0.05484926,125.25,125.21,0.05602043]
[1766355335577,0.05484926,125.25,125.21,3.26602043]
[1766355339080,3.3,125.29,125.22,3.21]
[1766355340085,0.0549409,125.27,125.24,0.05544598]
[1766355340785,3.3,125.31,125.24,3.26544598]
[1766355341492,52.19622185,125.33,125.25,3.21]
[1766355341786,0.04241301,125.3,125.28,0.05134219]
[1766355342086,3.3,125.33,125.28,0.05134219]
[1766355342271,12.37825797,125.36,125.28,3.26134219]
[1766355342476,5.01622185,125.36,125.28,3.21]
[1766355343089,5.01622185,125.36,125.31,0.05920916]
[1766355345199,3.3,125.36,125.31,0.05920916]
[1766355351879,1.71622185,125.37,125.31,3.26920916]
[1766355352087,3.3,125.38,125.31,3.26920916]
[1766355352480,3.3,125.38,125.32,7.1837]
[1766355352685,3.3,125.38,125.34,0.05498254]
[1766355354092,5.01622185,125.37,125.34,0.00498254]
[1766355354992,5.06622185,125.37,125.34,0.00498254]
[1766355358089,0.05,125.37,125.34,3.21498254]
[1766355358294,5.01622185,125.41,125.34,3.21498254]
[1766355359000,3.3,125.41,125.34,3.21498254]
[1766355359698,3.3,125.41,125.34,10.39778254]
[1766355360698,5.01087307,125.41,125.34,10.39778254]
[1766355360897,3.3,125.4,125.34,10.39778254]
[1766355361600,3.3,125.4,125.34,0.00498254]
[1766355361788,5.01087307,125.39,125.34,0.00498254]
[1766355361994,5.01087307,125.39,125.35,0.0531889]
[1766355362499,3.3,125.36,125.3,10.3949]
[1766355362701,3.3,125.36,125.3,3.21]
[1766355363505,0.0031889,125.34,125.32,3.26964483]
[1766355364208,5.01087307,125.38,125.32,3.26964483]
[1766355364405,3.3,125.38,125.32,3.26964483]
[1766355364708,3.3,125.4,125.33,3.21]
[1766355365206,3.3,125.4,125.35,0.05197548]
[1766355366602,4.99087307,125.41,125.35,7.23407548]
[1766355366802,4.99087307,125.41,125.35,10.42407548]
[1766355366998,3.28,125.41,125.35,10.42407548]
[1766355371099,3.28,125.43,125.36,3.19]
[1766355371301,3.28,125.43,125.38,0.05580611]
[1766355372608,3.28,125.45,125.38,10.42620611]
[1766355372810,3.28,125.45,125.4,0.05948316]
[1766355376707,3.28,125.47,125.4,0.05948316]
[1766355377713,3.28,125.46,125.4,0.05948316]
[1766355378113,5.95086522,125.46,125.4,0.05948316]
[1766355378314,3.28,125.45,125.4,0.05948316]
[1766355378706,7.1757,125.47,125.4,0.05948316]
[1766355378707,3.28,125.48,125.4,3.24948316]
[1766355379013,3.28,125.48,125.43,0.05703761]
[1766355379717,5.95086522,125.48,125.43,0.05703761]
[1766355380016,3.28,125.47,125.4,10.3693]
[1766355381114,0.05044305,125.45,125.42,0.05186872]
[1766355394630,3.42044305,125.45,125.42,0.05186872]
[1766355394835,3.42044305,125.45,125.38,3.38]
[1766355395936,3.42044305,125.45,125.4,0.06099797]
[1766355399046,3.42044305,125.45,125.4,0.00099797]
[1766355399336,3.38,125.43,125.37,3.21]
[1766355399929,3.38,125.43,125.37,10.3911]
[1766355400130,0.0535518,125.41,125.39,0.05293575]
[1766355402137,3.4335518,125.41,125.39,0.00293575]
[1766355402338,3.4335518,125.41,125.33,158.878]
[1766355402339,6.05086522,125.4,125.33,3.21]
[1766355402634,3.38,125.42,125.36,3.21]
[1766355403227,0.05488261,125.4,125.38,0.05714843]
[1766355407141,3.43488261,125.4,125.34,10.3926]
[1766355407334,3.38,125.39,125.32,3.21]
[1766355407535,6.05267061,125.38,125.32,3.21]
[1766355408036,0.05178859,125.36,125.34,0.06100487]
[1766355408739,3.43178859,125.36,125.3,50.31]
[1766355408946,3.43178859,125.36,125.3,3.21]
[1766355409642,6.1044592,125.36,125.3,3.21]
[1766355409840,3.38,125.35,125.32,0.05320672]
[1766355410036,3.431176,125.35,125.28,3.21]
[1766355411047,3.431176,125.35,125.3,0.05398369]
[1766355415543,3.431176,125.35,125.3,0.00398369]
[1766355419043,9.85697061,125.32,125.22,3.21]
[1766355419245,47.14,125.31,125.23,3.21]
[1766355419445,47.14,125.32,125.26,3.21]
[1766355419646,47.14,125.32,125.26,10.3973]
[1766355420050,0.05659735,125.3,125.28,0.05296828]
[1766355427850,111.7109,125.37,125.28,0.05296828]
[1766355427851,9.85377061,125.38,125.29,3.49]
[1766355428048,114.35367061,125.41,125.29,3.49]
[1766355428250,47.14,125.4,125.3,3.49]
[1766355428856,0.05160401,125.36,125.34,0.06045888]
[1766355432468,49.81267061,125.43,125.34,3.55045888]
[1766355432668,49.81267061,125.43,125.34,3.49]
[1766355433463,0.05760495,125.4,125.37,0.05296427]
[1766355466701,1.76872033,125.4,125.37,0.05296427]
[1766355466909,1.71111538,125.38,125.33,3.51]
[1766355468007,0.05748624,125.37,125.34,0.05370869]
[1766355470510,0.05748624,125.37,125.34,3.56370869]
[1766355479125,1.76860162,125.37,125.32,3.51]
[1766355479308,1.71111538,125.37,125.32,3.51]
[1766355480007,8.89261538,125.37,125.3,3.51]
[1766355480212,1.76967316,125.35,125.32,0.06104652]
[1766355480916,1.76967316,125.35,125.3,3.51]
[1766355481722,1.76967316,125.35,125.31,0.05723571]
[1766355483111,1.7128451,125.34,125.31,0.05723571]
[1766355489426,1.7128451,125.34,125.28,3.34]
[1766355489628,1.7128451,125.32,125.26,10.5273]
[1766355490014,1.7128451,125.32,125.26,3.34]
[1766355490417,1.7128451,125.32,125.28,0.05679347]
[1766355490626,0.05913431,125.3,125.28,0.05679347]
[1766355490923,1.77197941,125.3,125.28,0.05679347]
[1766355491125,1.77197941,125.3,125.26,3.34]
[1766355492128,1.77197941,125.3,125.27,0.05387865]
[1766355495932,0.05913431,125.3,125.27,0.05387865]
[1766355500448,0.05913431,125.3,125.25,3.34]
[1766355501039,0.05913431,125.3,125.24,10.5481]
[1766355501226,0.05913431,125.3,125.26,0.05966167]
[1766355501428,0.05913431,125.3,125.24,3.36]
[1766355502545,0.05913431,125.3,125.26,0.05066284]
[1766355503140,2.6776849,125.29,125.21,3.36]
[1766355503341,47.16,125.3,125.22,3.36]
[1766355504234,0.05721732,125.27,125.22,3.36]
[1766355504447,0.05721732,125.27,125.24,7.1885]
[1766355506339,0.05721732,125.27,125.24,10.5485]
[1766355506740,0.05721732,125.27,125.24,3.36]
[1766355510446,0.05721732,125.27,125.21,3.36]
[1766355511738,0.05721732,125.27,125.18,54.3517]
[1766355511739,0.05721732,125.27,125.19,3.36]
[1766355511940,0.05699807,125.24,125.19,3.36]
[1766355513347,2.6776849,125.29,125.2,3.4]
[1766355514247,9.8636849,125.29,125.23,0.05256587]
[1766355514547,0.05154911,125.26,125.23,0.05256587]
[1766355518146,0.05154911,125.26,125.2,3.25]
[1766355518335,9.8648849,125.27,125.2,3.25]
[1766355519149,0.06038211,125.25,125.2,3.25]
[1766355525551,0.00038211,125.25,125.22,3.25]
[1766355526051,7.1851,125.31,125.22,3.25]
[1766355526244,7.1851,125.31,125.23,3.25]
[1766355527146,0.0606338,125.28,125.26,0.05988506]
[1766355538364,0.0606338,125.28,125.24,3.25]
[1766355541873,0.0606338,125.28,125.22,3.25]
[1766355557676,0.0606338,125.28,125.2,3.38]
[1766355557677,2.67935783,125.27,125.2,3.38]
[1766355557877,0.05465128,125.25,125.2,3.38]
[1766355558184,1.71561186,125.24,125.2,3.38]
[1766355558975,1.71561186,125.24,125.16,3.38]
[1766355559178,0.05885152,125.21,125.16,3.38]
[1766355560590,1.71561186,125.22,125.18,3.38]
[1766355560786,1.71561186,125.24,125.18,3.38]
[1766355561586,1.76838481,125.22,125.2,0.05543667]
[1766355562289,0.05277295,125.22,125.2,0.05543667]
[1766355567389,0.05277295,125.22,125.18,3.38]
[1766355568188,0.05277295,125.22,125.16,3.26]
[1766355568395,0.05277295,125.22,125.18,0.02118302]
[1766355569094,1.71577825,125.21,125.18,0.02118302]
[1766355569896,1.71577825,125.21,125.16,3.26]
[1766355570189,0.05277295,125.22,125.14,3.26]
[1766355570190,1.71577825,125.19,125.14,3.26]
[1766355570986,0.06121966,125.18,125.14,3.26]
[1766355572593,1.71577825,125.17,125.11,3.26]
[1766355572910,0.05877992,125.15,125.11,3.26]
[1766355573093,1.71577825,125.17,125.11,3.26]
[1766355573296,1.71577825,125.15,125.11,3.26]
[1766355574089,0.0550119,125.14,125.12,0.05050555]
[1766355574794,0.0550119,125.14,125.09,3.26]
[1766355575301,1.71577825,125.13,125.09,3.26]
[1766355577802,0.0550119,125.14,125.09,3.26]
[1766355581508,1.71577825,125.13,125.09,3.26]
[1766355582399,1.71577825,125.11,125.04,3.21]
[1766355582705,1.76956973,125.09,125.04,3.21]
[1766355585098,1.71577825,125.07,125.0,3.21]
[1766355585404,0.00246036,125.05,125.0,3.21]
[1766355586306,0.00246036,125.05,125.01,0.05560848]
[1766355586808,0.00246036,125.05,125.01,3.26560848]
[1766355587700,1.71823861,125.05,125.01,3.26560848]
[1766355588207,1.71823861,125.05,124.98,3.21]
[1766355588503,1.71577825,125.05,124.98,3.21]
[1766355589301,0.06023782,125.03,124.98,3.21]
[1766355590111,1.77601607,125.03,124.98,3.21]
[1766355591310,0.00023782,125.03,124.98,3.21]
[1766355592212,0.00023782,125.03,125.0,3.21]
[1766355594801,7.1964,125.11,125.01,3.21]
[1766355595007,1.71577825,125.1,125.01,3.21]
[1766355595210,1.71577825,125.08,125.01,3.21]
[1766355595799,0.05334519,125.06,125.03,0.05447397]
[1766355596008,1.76912344,125.06,125.03,0.05447397]
[1766355597608,0.05334519,125.06,125.03,3.26447397]
[1766355598112,0.00334519,125.06,125.03,3.26447397]
[1766355601212,1.71912344,125.06,124.99,3.21]
[1766355601419,1.71577825,125.06,124.99,3.21]
[1766355602010,1.71577825,125.04,124.99,3.21]
[1766355602206,0.05232446,125.03,125.0,0.05842974]
[1766355602420,0.05232446,125.03,125.0,3.26842974]
[1766355603020,0.05232446,125.03,125.0,0.05842974]
[1766355603722,1.71577825,125.02,125.0,0.05842974]
[1766355604223,1.77361652,125.03,125.0,0.05842974]
[1766355604619,0.05232446,125.03,125.0,3.26842974]
[1766355617131,1.77361652,125.03,125.0,3.26842974]
[1766355618037,0.05232446,125.03,125.0,3.26842974]
[1766355620352,0.00232446,125.03,125.0,3.26842974]
[1766355637865,0.00232446,125.03,125.0,0.05842974]
[1766355638244,0.00232446,125.03,125.0,3.43842974]
[1766355652369,7.44952855,125.05,125.0,3.43842974]
[1766355652370,0.00185301,125.05,125.0,3.43842974]
[1766355652670,47.26,125.06,125.0,3.43842974]
[1766355653570,0.0036216,125.04,125.0,10.64072974]
[1766355653772,0.0036216,125.04,125.01,3.38]
[1766355670485,0.0036216,125.04,125.02,3.2]
[1766355685587,0.0036216,125.04,125.02,10.4012]
[1766355701314,0.0036216,125.04,125.02,3.2]
[1766355708217,0.0036216,125.04,125.0,110.95042974]
[1766355708417,0.0036216,125.04,125.01,3.45]
[1766355722629,54.4581,125.08,125.02,3.45]
[1766355722630,52.21009815,125.08,125.02,3.45]
[1766355723632,52.21009815,125.08,125.04,0.05226654]
[1766355723633,0.05681239,125.06,125.04,0.05226654]
[1766355725635,47.26,125.08,125.04,3.57226654]
[1766355725823,3.42,125.1,125.04,3.57226654]
[1766355726930,0.05574629,125.08,125.04,3.57226654]
[1766355728233,12.58953303,125.15,125.07,3.52]
[1766355728427,3.42,125.16,125.09,3.52]
[1766355728726,3.42,125.15,125.09,3.52]
[1766355729331,3.42,125.15,125.11,0.05916795]
[1766355729332,0.05798449,125.13,125.11,0.05916795]
[1766355733638,3.42,125.15,125.11,3.57916795]
[1766355734837,0.05298995,125.14,125.11,3.57916795]
[1766355780689,3.42298995,125.14,125.09,3.25]
[1766355780895,3.37,125.14,125.09,3.25]
[1766355781580,10.5647,125.14,125.09,3.25]
[1766355781779,0.05721214,125.13,125.1,0.05280891]
[1766355794798,3.29,125.12,125.07,3.2]
[1766355795002,3.29,125.11,125.07,3.2]
[1766355795907,0.05420938,125.1,125.08,0.05216836]
[1766355822312,1.77305161,125.1,125.05,3.52]
[1766355823618,1.77305161,125.1,125.06,3.58110101]
[1766355834323,5.27305161,125.1,125.06,3.58110101]
[1766355835336,5.27305161,125.1,125.06,0.06110101]
[1766355837041,1.71884223,125.08,125.04,3.52]
[1766355838038,0.05839447,125.07,125.05,0.05052992]
[1766355838532,0.05839447,125.07,125.02,3.52]
[1766355838940,5.21884223,125.06,125.0,3.52]
[1766355839124,1.71884223,125.04,125.0,3.52]
[1766355839637,0.05674722,125.03,125.01,0.05601992]
[1766355841231,7.1993,125.06,125.01,3.57601992]
[1766355841436,3.5,125.07,125.01,3.57601992]
[1766355842344,0.05709313,125.05,125.01,3.57601992]
[1766355843230,7.1971,125.1,125.02,3.52]
[1766355843436,3.5,125.11,125.02,3.52]
[1766355844336,0.00467967,125.08,125.05,3.57434128]
[1766355856757,3.24,125.12,125.06,3.52]
[1766355857653,0.05513654,125.1,125.08,0.05462922]
[1766355858159,0.05513654,125.1,125.08,3.57462922]
[1766355860157,1.71904187,125.13,125.08,3.57462922]
[1766355860361,4.95904187,125.13,125.08,3.57462922]
[1766355861257,0.05026799,125.12,125.08,3.57462922]
[1766355864365,5.97570521,125.12,125.08,0.05462922]
[1766355864560,5.97570521,125.12,125.06,3.52]
[1766355864561,3.24,125.11,125.06,3.52]
[1766355865560,3.29026799,125.12,125.07,3.57393792]
[1766355865763,0.05615567,125.11,125.07,3.57393792]
[1766355886580,7.1953,125.13,125.07,3.57393792]
[1766355887470,0.05987511,125.11,125.07,3.57393792]
[1766355900889,3.52987511,125.11,125.07,0.05393792]
[1766355901191,3.52987511,125.11,125.05,3.19]
[1766355901989,3.47,125.1,125.05,3.19]
[1766355902179,3.47,125.1,125.07,0.05142213]
[1766355902489,3.47,125.1,125.05,3.19]
[1766355903190,3.47,125.09,125.03,3.19]
[1766355903379,0.051478,125.07,125.05,0.05496419]
[1766355903579,0.051478,125.07,125.03,3.19]
[1766355904579,0.051478,125.07,125.04,0.05072003]
[1766355905488,0.051478,125.07,125.03,3.19]
[1766355905792,3.521478,125.07,125.0,3.49]
[1766355906092,3.47,125.07,125.0,3.49]
[1766355906694,0.05206929,125.05,125.02,3.54198707]
[1766355918704,9.88232325,125.1,125.02,3.54198707]
[1766355918905,3.47,125.11,125.02,3.49]
[1766355919700,3.47,125.11,125.05,0.05884643]
[1766355919900,0.05552894,125.08,125.05,3.54884643]
[1766355923715,3.47,125.11,125.05,3.54884643]
[1766355923916,5.18911385,125.11,125.05,3.54884643]
[1766355924708,0.0513788,125.09,125.05,3.54884643]
[1766355937822,0.0013788,125.09,125.05,3.54884643]
[1766355939618,1.71921571,125.11,125.05,3.54884643]
[1766355939824,47.24,125.12,125.05,3.54884643]
[1766355940508,1.71921571,125.13,125.05,3.54884643]
[1766355940713,10.4748,125.14,125.09,3.28]
[1766355940913,12.19401571,125.14,125.09,3.28]
[1766355941812,0.05744037,125.13,125.09,3.28]
[1766355949823,1.71921571,125.15,125.09,3.28]
[1766355950819,1.71921571,125.17,125.11,0.05345488]
[1766355951013,1.71921571,125.17,125.09,111.956]
[1766355951014,1.71921571,125.19,125.13,0.05685129]
[1766355951410,0.00406997,125.17,125.13,0.05685129]
[1766355955117,1.71921571,125.21,125.13,0.05685129]
[1766355955432,1.71921571,125.21,125.11,113.65671571]
[1766355956130,0.00048032,125.17,125.15,0.05984952]
[1766355962625,0.00048032,125.17,125.15,7.25344952]
[1766355967523,0.00048032,125.17,125.15,54.45344952]
[1766355970839,3.5,125.24,125.17,7.1927]
[1766355971634,0.05060772,125.22,125.19,0.05890577]
[1766355973740,0.00060772,125.22,125.19,0.05890577]
[1766355978441,3.50060772,125.22,125.19,0.05890577]
[1766355978833,0.00060772,125.22,125.19,0.05890577]
[1766355980750,0.00060772,125.22,125.19,7.25020577]
[1766355981845,5.2157427,125.26,125.2,7.1908]
[1766355982150,3.5,125.26,125.2,7.1908]
[1766355982850,0.05537703,125.24,125.22,0.05691824]
[1766355983650,5.2157427,125.28,125.22,0.05691824]
[1766355983855,3.5,125.28,125.22,0.05691824]
[1766355984039,1.7157427,125.29,125.22,0.05691824]
[1766355984244,3.5,125.3,125.22,0.05691824]
[1766355984545,48.9157427,125.31,125.25,0.05036317]
[1766355984750,1.7157427,125.31,125.25,0.05036317]
[1766355985442,5.2157427,125.31,125.25,0.05036317]
[1766355985652,0.05632159,125.29,125.25,0.05036317]
[1766355986147,6.1771696,125.33,125.25,0.05036317]
[1766355986347,6.1771696,125.33,125.24,47.18]
[1766355987150,0.05454612,125.3,125.27,0.05032195]
[1766355994768,3.52454612,125.3,125.27,0.05032195]
[1766355999152,3.52454612,125.3,125.23,53.0]
[1766356000260,3.52454612,125.3,125.25,0.05037778]
[1766356000456,10.70994612,125.3,125.25,0.05037778]
[1766356000666,3.26,125.29,125.25,0.05037778]
[1766356007763,2.6771696,125.29,125.25,0.00037778]
[1766356007971,3.26,125.28,125.25,0.00037778]
[1766356009870,3.26,125.28,125.21,54.3502]
[1766356010878,0.06071951,125.26,125.23,0.05030589]
[1766356012772,3.32071951,125.26,125.23,0.05030589]
[1766356015272,3.32071951,125.26,125.23,0.00030589]
[1766356019982,3.32071951,125.26,125.19,60.1911]
[1766356021075,3.32071951,125.26,125.21,0.05173064]
[1766356024980,3.26,125.24,125.17,7.1923]
[1766356025986,0.05555276,125.22,125.19,0.0573021]
[1766356026173,0.05555276,125.22,125.19,0.05811536]
[1766356027085,3.24555276,125.22,125.19,0.05811536]
[1766356041493,3.19,125.26,125.19,0.05811536]
[1766356042489,0.05329566,125.24,125.19,0.05811536]
[1766356042694,0.05329566,125.24,125.2,7.24880386]
[1766356047506,3.36329566,125.24,125.2,0.05820386]
[1766356051808,3.36329566,125.24,125.18,47.18]
[1766356053802,3.36329566,125.24,125.2,0.05436247]
[1766356056909,0.00329566,125.24,125.2,0.05436247]
[1766356057115,3.47,125.28,125.2,1.76987283]
[1766356057414,3.47,125.28,125.2,1.71551036]
[1766356058010,0.05526223,125.25,125.23,0.06039715]
[1766356059510,3.47,125.28,125.23,0.06039715]
[1766356060617,0.0527891,125.27,125.23,0.06039715]
[1766356065620,3.5227891,125.27,125.23,0.06039715]
[1766356066726,3.5227891,125.27,125.23,0.00039715]
[1766356079840,3.47,125.26,125.23,0.00039715]
[1766356081841,3.47,125.26,125.19,60.1912]
[1766356082042,3.47,125.26,125.19,7.1912]
[1766356083033,0.06129555,125.24,125.21,0.05474737]
[1766356099955,3.50129555,125.24,125.21,0.05474737]
[1766356100141,3.44,125.23,125.21,0.00474737]
[1766356101747,14.62948102,125.28,125.21,0.00474737]
[1766356101947,7.1866,125.28,125.18,166.59066404]
[1766356102652,7.1866,125.28,125.2,7.1906]
[1766356102851,0.06043746,125.24,125.22,0.05357768]
[1766356108760,3.42,125.28,125.22,7.24327768]
[1766356109160,3.42,125.28,125.22,0.05357768]
[1766356109858,0.06108721,125.26,125.22,0.05357768]
[1766356110564,0.06108721,125.26,125.23,7.1891]
[1766356114266,3.48108721,125.26,125.22,47.23357768]
[1766356114965,3.48108721,125.26,125.22,0.05357768]
[1766356115759,3.48108721,125.26,125.22,0.00357768]
[1766356116261,3.48108721,125.26,125.15,135.9063]
[1766356116262,3.27,125.25,125.17,7.1923]
[1766356116468,3.27,125.25,125.17,47.18]
[1766356117363,0.05941265,125.22,125.2,0.06042067]
[1766356135373,5.95059558,125.26,125.2,0.06042067]
[1766356135779,3.27,125.25,125.2,0.06042067]
[1766356136681,0.05470813,125.24,125.2,7.25122067]
[1766356141185,0.05470813,125.24,125.21,7.1901]
[1766356141383,8.13e-06,125.25,125.21,7.1901]
[1766356142285,0.05342092,125.24,125.22,7.1895]
[1766356143986,0.00342092,125.24,125.22,7.1895]
[1766356144887,3.27,125.28,125.23,7.189]
[1766356145989,0.0605837,125.27,125.24,0.05631834]
[1766356147084,3.23,125.32,125.24,0.05631834]
[1766356147389,3.23,125.32,125.24,7.1884]
[1766356147585,3.23,125.32,125.25,47.18]
[1766356148187,0.053425,125.3,125.27,0.05360091]
[1766356160601,3.283425,125.3,125.27,0.05360091]
[1766356175728,0.053425,125.3,125.27,0.05360091]
[1766356185242,3.393425,125.3,125.27,0.05360091]
[1766356186839,3.393425,125.3,125.23,53.0]
[1766356188039,3.393425,125.3,125.25,0.05926773]
[1766356189242,3.393425,125.3,125.25,7.24696773]
[1766356202360,0.053425,125.3,125.26,7.1874]
[1766356202553,0.053425,125.3,125.26,47.16]
[1766356203658,0.053425,125.3,125.27,7.1868]
[1766356204858,0.053425,125.3,125.26,47.16]
[1766356205161,3.393425,125.3,125.25,107.40696773]
[1766356206855,3.393425,125.3,125.25,54.40696773]
[1766356210877,3.553425,125.3,125.25,47.21926773]
[1766356211877,0.003425,125.3,125.25,47.21926773]
[1766356212175,0.003425,125.3,125.25,0.05926773]
[1766356212377,0.003425,125.3,125.25,47.21926773]
[1766356212879,0.003425,125.3,125.25,100.21926773]
[1766356213677,0.003425,125.3,125.25,107.40706773]
[1766356215078,3.503425,125.3,125.25,100.21926773]
[1766356218772,3.503425,125.3,125.25,47.21926773]
[1766356223384,0.003425,125.3,125.25,47.21926773]
[1766356224982,0.003425,125.3,125.25,54.40686773]
[1766356225187,10.98117555,125.34,125.25,47.21926773]
[1766356225487,10.98117555,125.34,125.26,1.71304003]
[1766356226087,0.05839504,125.31,125.29,0.05820569]
[1766356228383,3.5,125.34,125.29,0.05820569]
[1766356229485,0.02412863,125.33,125.29,0.05820569]
[1766356232189,0.02412863,125.33,125.29,7.24380569]
[1766356232394,0.02412863,125.33,125.29,54.40380569]
[1766356233088,3.4,125.36,125.29,54.40380569]
[1766356234487,47.16,125.37,125.3,7.185]
[1766356234687,50.56,125.37,125.32,0.05674037]
[1766356236091,3.18,125.36,125.32,0.05674037]
[1766356245606,3.18,125.38,125.32,7.24054037]
[1766356245798,3.18,125.38,125.34,0.05380752]
[1766356247902,3.18,125.4,125.34,0.05380752]
[1766356251612,3.18,125.4,125.34,7.23660752]
[1766356253305,3.18,125.42,125.35,7.1822]
[1766356253609,3.18,125.42,125.37,0.05912938]
[1766356254810,3.18,125.45,125.37,0.05912938]
[1766356255012,3.18,125.45,125.4,0.0561453]
[1766356256299,3.18,125.45,125.37,7.181]
[1766356257309,0.0561453,125.42,125.4,0.05815026]
[1766356258216,3.2361453,125.42,125.37,7.181]
[1766356259218,3.2361453,125.42,125.38,0.05984696]
[1766356269816,2.67174663,125.45,125.38,7.24024696]
[1766356270721,2.67174663,125.46,125.39,7.4099]
[1766356270924,0.05815026,125.44,125.41,0.0586828]
[1766356271126,2.72989689,125.44,125.37,53.0]
[1766356271327,2.72989689,125.44,125.37,47.12]
[1766356271627,2.72989689,125.44,125.37,47.41]
[1766356272014,3.52,125.43,125.37,47.41]
[1766356272220,0.05460785,125.41,125.39,0.0517332]
[1766356272511,3.57460785,125.41,125.39,0.0017332]
[1766356274519,2.67174663,125.4,125.36,35.35]
[1766356274714,0.05460785,125.41,125.34,3.38]
[1766356275016,2.67174663,125.42,125.34,3.38]
[1766356275421,2.67174663,125.44,125.37,0.05185428]
[1766356275622,2.67174663,125.44,125.37,3.38]
[1766356276631,0.05166456,125.42,125.39,0.05745531]
[1766356278029,0.05166456,125.42,125.35,3.38]
[1766356278223,2.67174663,125.44,125.35,3.38]
[1766356279017,0.06022241,125.41,125.38,0.05945742]
[1766356279920,2.67174663,125.4,125.33,3.38]
[1766356280726,2.67174663,125.42,125.33,3.38]
[1766356280932,0.05271764,125.38,125.35,0.05198431]
[1766356281825,0.05271764,125.38,125.35,0.00198431]
[1766356282031,0.05271764,125.38,125.31,3.38]
[1766356282928,0.05271764,125.38,125.33,0.06085099]
[1766356287633,2.67174663,125.36,125.29,3.27]
[1766356288528,0.05050485,125.34,125.31,0.05650908]
[1766356288833,2.67174663,125.34,125.27,3.27]
[1766356289622,0.05695329,125.32,125.29,0.05254792]
[1766356298241,1.76999288,125.32,125.25,3.36]
[1766356298541,0.05695329,125.32,125.25,3.36]
[1766356299233,0.05695329,125.32,125.27,0.05892705]
[1766356299438,0.05370049,125.31,125.27,0.05892705]
[1766356300440,1.76674008,125.31,125.27,0.05892705]
[1766356300841,1.76674008,125.31,125.24,3.36]
[1766356301138,1.71303959,125.29,125.24,3.36]
[1766356302040,0.06083356,125.28,125.25,0.05542601]
[1766356304349,0.06083356,125.28,125.25,3.41542601]
[1766356306451,0.06083356,125.28,125.25,0.05542601]
[1766356308149,0.06083356,125.28,125.25,3.41542601]
[1766356313966,0.06083356,125.28,125.25,0.05542601]
[1766356334579,1.77387315,125.28,125.25,0.05542601]
[1766356335981,1.7753028,125.28,125.25,0.05542601]
[1766356344189,0.06083356,125.28,125.25,0.05542601]
[1766356349390,0.00083356,125.28,125.26,3.29]
[1766356353994,47.16,125.31,125.26,3.29]
[1766356354893,0.05284547,125.3,125.26,3.29]
[1766356359392,0.05284547,125.3,125.25,0.05542601]
[1766356359594,2.73049746,125.3,125.25,0.05542601]
[1766356360689,9.91599746,125.3,125.25,0.05542601]
[1766356361395,2.67765199,125.28,125.2,3.49]
[1766356362291,0.05397372,125.25,125.23,0.05900925]
[1766356363496,0.05397372,125.25,125.2,3.49]
[1766356363697,7.24227372,125.25,125.18,3.49]
[1766356363899,7.1883,125.25,125.18,3.49]
[1766356364394,0.05886091,125.23,125.2,0.05170305]
[1766356369507,0.05886091,125.23,125.17,3.49]
[1766356369800,2.67765199,125.24,125.17,3.49]
[1766356370404,7.1895,125.23,125.17,3.49]
[1766356370604,0.0556641,125.21,125.19,0.05625222]
[1766356394321,7.1889,125.24,125.19,3.23625222]
[1766356394518,54.348,125.26,125.19,3.23625222]
[1766356395419,0.05414871,125.24,125.19,3.23625222]
[1766356403624,7.24304871,125.24,125.19,3.23625222]
[1766356413240,14.67005982,125.24,125.19,3.23625222]
[1766356413934,1.71598943,125.22,125.19,3.23625222]
[1766356416527,16.38604925,125.24,125.19,3.23625222]
[1766356418236,16.38585752,125.24,125.19,3.23625222]
[1766356420639,8.95884641,125.24,125.19,3.23625222]
[1766356426737,16.38585752,125.24,125.19,3.23625222]
[1766356431948,7.48115982,125.24,125.19,3.23625222]
[1766356432244,0.05414871,125.24,125.19,3.23625222]
[1766356437444,0.00414871,125.24,125.19,3.23625222]
[1766356438637,0.00414871,125.24,125.2,3.29]
[1766356442353,0.00414871,125.24,125.2,10.4808]
[1766356442556,0.00414871,125.24,125.21,3.29]
[1766356446852,0.00414871,125.24,125.21,10.4803]